bitfinex/quotes_ETHUSD_20250815
["timestamp","ask_amount","ask_price","bid_price","bid_amount"]
[1755261037422,0.04,4643.9,4640.9,3.0]
[1755261037612,0.04,4643.9,4642.0,3.0]
[1755261037812,0.04,4643.9,4642.7,0.55]
[1755261038012,0.04,4645.9,4642.9,3.55]
[1755261038258,0.04,4645.9,4643.8,0.55]
[1755261038421,0.04,4645.9,4643.8,3.55]
[1755261038858,0.04,4645.9,4643.7,0.55]
[1755261039377,0.04,4645.9,4643.9,3.0]
[1755261039512,0.04,4645.9,4644.2,0.55]
[1755261039707,0.04,4649.9,4644.4,3.55]
[1755261039708,0.1,4649.0,4644.4,3.55]
[1755261039914,0.04,4649.9,4644.6,3.55]
[1755261040114,0.04,4649.9,4644.8,3.55]
[1755261040328,0.04,4649.9,4645.0,3.55]
[1755261040538,0.04,4649.9,4645.2,3.55]
[1755261040810,0.02,4654.9,4646.2,3.55]
[1755261040811,0.1,4652.4,4646.2,3.55]
[1755261041010,0.02,4654.9,4646.5,1.849]
[1755261041218,0.1,4653.7,4647.3,1.299]
[1755261041433,0.1,4651.1,4647.4,30.0]
[1755261041647,0.1,4650.3,4647.5,3.0]
[1755261041950,0.128,4653.3,4647.7,3.0]
[1755261042109,0.1,4649.8,4647.4,0.0008]
[1755261042314,0.53892975,4653.4,4647.4,0.0008]
[1755261042315,5.173,4650.8,4647.4,0.0008]
[1755261042552,0.02,4655.9,4647.5,35.173]
[1755261042754,0.12,4653.9,4647.7,3.0]
[1755261042961,0.02,4653.9,4647.9,3.0]
[1755261043161,0.02,4653.9,4649.2,23.02054207]
[1755261043362,0.0427,4655.0,4649.3,30.0]
[1755261043562,0.0427,4655.0,4649.6,3.0]
[1755261043766,0.0427,4655.0,4649.8,3.0]
[1755261044066,0.0427,4655.0,4649.7,42.20446404]
[1755261044067,0.0427,4655.0,4651.6,3.0]
[1755261044293,0.02,4655.9,4655.0,30.0]
[1755261044431,0.02,4656.9,4655.2,3.0]
[1755261044630,0.2495,4658.8,4655.4,3.0]
[1755261044828,0.2495,4658.8,4655.6,3.0]
[1755261045030,0.2695,4659.9,4656.8,3.0]
[1755261045270,0.02,4661.9,4658.8,3.0]
[1755261045578,0.2495,4664.3,4662.0,3.0]
[1755261045904,0.29,4665.9,4662.6,5.169]
[1755261046056,0.00752293,4673.7,4665.8,5.169]
[1755261046057,0.12737135,4672.9,4665.8,5.169]
[1755261046376,0.01697807,4672.9,4665.9,33.44892784]
[1755261046586,0.085837,4671.4,4666.0,30.0]
[1755261046730,0.1,4667.7,4665.9,0.67911513]
[1755261046932,5.169,4669.2,4662.3,10.0]
[1755261047133,0.1,4665.5,4659.3,0.645]
[1755261047369,3.0,4665.9,4659.4,36.461]
[1755261047571,3.0,4665.9,4658.2,5.159]
[1755261047572,5.159,4665.8,4659.5,29.75]
[1755261047874,3.0,4665.6,4660.1,0.02]
[1755261048081,3.0,4665.6,4659.1,0.02]
[1755261048082,3.0,4665.4,4659.1,0.02]
[1755261048298,30.26580518,4665.3,4659.1,0.02]
[1755261048445,3.0,4665.1,4659.1,0.02]
[1755261048780,0.2455736,4665.2,4659.2,30.0]
[1755261048942,0.112061,4669.3,4659.2,30.0]
[1755261049141,0.112061,4669.3,4659.3,3.0]
[1755261049354,0.112061,4669.3,4659.7,0.39751456]
[1755261049537,30.0,4669.2,4661.9,1.044664]
[1755261049763,0.112061,4669.3,4664.2,1.044664]
[1755261049967,30.0,4669.2,4664.3,0.715164]
[1755261050184,6.445,4669.1,4664.2,0.157876]
[1755261050350,6.445,4669.1,4659.4,1.10322822]
[1755261050351,0.02,4661.9,4659.4,1.10322822]
[1755261050551,0.02,4662.9,4659.5,17.817]
[1755261050768,0.02,4662.9,4659.6,2.60718682]
[1755261050952,0.02,4662.9,4661.0,0.715164]
[1755261051167,0.02,4662.9,4659.7,30.0]
[1755261051168,0.02,4662.9,4661.6,0.715164]
[1755261051367,0.02,4663.9,4663.2,0.695164]
[1755261051575,0.02,4665.9,4664.6,0.497288]
[1755261051884,5.156,4670.7,4666.2,0.28642638]
[1755261052037,0.643498,4669.8,4666.1,0.28642638]
[1755261052241,0.643498,4669.8,4665.0,0.28642638]
[1755261052440,0.643498,4669.8,4666.1,0.28642638]
[1755261052691,0.643498,4669.8,4667.7,0.26642638]
[1755261052886,0.643498,4669.8,4668.9,0.22642638]
[1755261053053,0.643498,4669.8,4669.0,0.22642638]
[1755261053253,0.02,4671.9,4663.8,60.0]
[1755261053254,5.152,4670.2,4665.5,0.22642638]
[1755261053504,0.643498,4670.1,4666.0,0.22642638]
[1755261053786,30.0,4669.8,4666.1,0.22642638]
[1755261053968,30.0,4669.8,4662.1,0.02]
[1755261053969,0.002,4663.9,4662.1,0.02]
[1755261054176,0.002,4663.9,4663.1,0.02]
[1755261054343,3.0,4666.3,4664.1,0.018]
[1755261054344,0.5152,4666.3,4664.1,0.018]
[1755261054545,0.633,4669.1,4664.1,0.018]
[1755261054775,3.1,4668.9,4663.1,0.02]
[1755261055099,3.0,4668.7,4665.1,0.02]
[1755261055387,0.0992,4667.3,4662.1,0.02]
[1755261055696,2.679,4668.8,4662.1,0.02]
[1755261055697,2.24206503,4666.7,4662.1,0.02]
[1755261055844,2.269,4668.0,4662.1,0.02]
[1755261056043,2.14317941,4666.0,4663.3,2.14440318]
[1755261056248,5.15,4669.0,4663.3,0.21444032]
[1755261056442,5.15,4669.0,4662.1,0.02]
[1755261056757,0.02,4669.9,4662.1,0.02]
[1755261056758,2.14218096,4668.2,4663.6,2.14426623]
[1755261057069,2.14216023,4668.2,4665.9,2.14317413]
[1755261057272,0.02,4665.9,4664.4,2.1438837]
[1755261057443,0.02,4665.9,4661.1,0.02]
[1755261057444,2.1433598,4665.6,4662.2,2.14491012]
[1755261057640,0.02,4665.9,4661.2,2.14535737]
[1755261057868,0.02,4664.9,4661.1,0.02]
[1755261058071,0.02,4664.9,4661.1,4.9]
[1755261058284,0.02,4664.9,4662.2,27.978]
[1755261058582,0.02,4665.9,4662.3,18.104]
[1755261058894,0.02,4666.9,4664.9,2.14366867]
[1755261059046,0.02,4666.9,4661.1,0.7592086]
[1755261059047,0.02,4666.9,4663.4,6.437]
[1755261059246,0.02,4666.9,4666.7,2.14283643]
[1755261059475,0.02,4666.9,4663.6,3.0]
[1755261059679,0.02,4666.9,4663.3,3.0]
[1755261059879,0.02,4666.9,4665.7,2.14328896]
[1755261060084,0.02,4667.9,4664.1,3.55]
[1755261060253,0.02,4668.9,4665.8,0.55]
[1755261060442,0.02,4668.9,4664.1,3.0]
[1755261060443,0.02,4668.9,4664.3,2.14394442]
[1755261060649,30.0,4668.8,4665.5,2.14336353]
[1755261060877,0.0992,4668.0,4661.4,2.14525312]
[1755261061078,0.02,4668.9,4663.2,2.14445016]
[1755261061277,2.14216842,4668.2,4663.3,2.14440417]
[1755261061488,0.02,4668.9,4664.1,0.02]
[1755261062051,0.02,4668.9,4664.1,0.0208]
[1755261062250,30.0,4668.8,4664.1,0.0208]
[1755261062501,0.0992,4668.1,4664.1,0.0208]
[1755261062701,0.02,4668.9,4666.1,0.02]
[1755261062702,0.55,4667.5,4666.1,0.02]
[1755261062995,6.436,4667.4,4664.1,0.0208]
[1755261063175,0.55,4668.5,4664.1,0.0208]
[1755261063348,0.02,4668.9,4664.1,0.0208]
[1755261063988,2.14187799,4668.8,4664.1,0.0208]
[1755261064151,0.02,4668.9,4664.1,0.0208]
[1755261064152,30.0,4668.7,4664.1,0.0208]
[1755261064353,0.02,4668.9,4664.1,0.0208]
[1755261064601,0.55,4666.8,4664.1,0.0208]
[1755261064803,0.55,4665.6,4664.1,0.0208]
[1755261065007,0.55,4666.9,4664.1,0.0208]
[1755261065293,0.02,4667.9,4664.2,2.14399039]
[1755261065453,0.02,4666.9,4664.2,2.14399039]
[1755261065653,0.02,4666.9,4664.1,0.0208]
[1755261065654,2.14331344,4665.7,4664.1,0.0208]
[1755261065891,2.14296564,4666.5,4664.1,0.0208]
[1755261066090,0.55,4666.5,4664.1,0.0208]
[1755261066294,3.0,4666.4,4664.1,0.0208]
[1755261066498,3.0,4666.4,4664.3,2.14391992]
[1755261066499,0.55,4666.4,4664.3,2.14391992]
[1755261066712,0.55,4666.5,4664.1,0.0208]
[1755261067026,5.148,4666.6,4664.1,0.0208]
[1755261067176,7.29093141,4666.6,4664.1,0.0208]
[1755261067370,3.55,4666.2,4661.1,2.16538244]
[1755261067574,0.55,4665.7,4661.1,0.02]
[1755261067830,0.55,4664.7,4661.1,0.02]
[1755261067973,0.55,4663.7,4658.5,2.14660676]
[1755261068172,3.55,4663.5,4658.8,2.14643434]
[1755261068382,3.55,4663.3,4659.3,2.14620338]
[1755261068587,3.55,4663.3,4658.8,0.085896]
[1755261068588,0.55,4663.0,4658.6,2.14654817]
[1755261068869,2.14487462,4662.3,4659.7,2.14604814]
[1755261069119,0.55,4662.0,4657.1,0.02]
[1755261069416,2.14581219,4660.3,4657.1,0.02]
[1755261069569,0.0992,4661.2,4657.1,0.02]
[1755261069773,0.55,4660.2,4657.1,0.02]
[1755261070029,4.19545739,4661.0,4656.2,2.14767406]
[1755261070171,11.583,4661.4,4656.1,0.02]
[1755261070374,0.44967988,4661.3,4659.6,2.14607203]
[1755261070605,3.0,4661.3,4656.3,2.14762794]
[1755261070913,3.55,4661.1,4656.3,2.14762794]
[1755261071082,0.55,4661.1,4656.4,2.14758182]
[1755261071286,0.55,4661.1,4656.1,0.02]
[1755261071500,0.55,4661.1,4656.1,2.16771859]
[1755261071681,0.02,4660.9,4656.1,0.02]
[1755261071868,0.02,4660.9,4657.2,3.0]
[1755261072067,0.02,4660.9,4656.3,3.0]
[1755261072317,0.02,4659.9,4659.7,2.12605082]
[1755261072630,0.02,4659.9,4656.3,2.14762794]
[1755261072913,0.02,4659.9,4655.3,2.14807212]
[1755261073114,0.02,4659.9,4656.4,3.0]
[1755261073295,0.02,4660.9,4660.8,2.14555441]
[1755261073625,0.02,4660.9,4660.1,2.14585658]
[1755261073772,0.02,4660.9,4660.7,2.14559611]
[1755261073972,0.02,4660.9,4658.1,0.001]
[1755261074172,0.02,4660.9,4658.2,2.14675196]
[1755261074420,0.02,4660.9,4658.1,0.001]
[1755261074615,6.457,4662.9,4659.7,2.14605758]
[1755261074616,0.45382104,4662.3,4659.7,2.14605758]
[1755261074815,0.02,4662.9,4661.7,2.14510575]
[1755261074972,0.02,4662.9,4661.7,5.14510575]
[1755261075284,0.02,4662.9,4658.2,5.151]
[1755261075285,0.02,4662.9,4658.4,6.438]
[1755261075470,0.02,4662.9,4660.2,3.0]
[1755261075673,0.02,4662.9,4658.1,0.021]
[1755261075674,1.20119761,4662.8,4658.1,0.021]
[1755261075923,0.74737657,4661.4,4658.1,0.021]
[1755261076099,0.74737657,4660.5,4658.1,0.021]
[1755261076281,0.74737657,4659.3,4658.1,0.021]
[1755261076614,1.12106485,4659.9,4655.7,2.14788754]
[1755261076615,0.74737657,4658.2,4655.7,2.14788754]
[1755261076928,0.45382104,4658.1,4654.6,2.14838033]
[1755261077108,0.75810469,4657.7,4655.4,2.147998]
[1755261077278,0.75810469,4658.2,4654.6,2.14839468]
[1755261077478,0.73810469,4658.1,4655.9,2.14779722]
[1755261077787,5.152,4658.5,4655.1,2.16817363]
[1755261077993,30.55,4658.4,4655.1,0.02]
[1755261078179,0.55,4656.2,4655.1,0.02]
[1755261078380,0.55,4656.2,4654.1,0.02]
[1755261078381,4.24,4656.1,4654.1,0.02]
[1755261078690,6.44,4656.0,4654.1,0.02]
[1755261078891,6.44,4656.0,4652.1,0.02]
[1755261078892,2.14856868,4654.3,4652.1,0.02]
[1755261079089,30.0,4654.2,4650.5,0.64518]
[1755261079288,2.14844644,4654.6,4650.5,0.64518]
[1755261079289,32.43117375,4654.1,4650.5,0.64518]
[1755261079511,29.61994718,4654.0,4649.8,2.15062]
[1755261079675,1.91308034,4654.9,4649.7,2.15066173]
[1755261079878,8.58080475,4654.8,4650.2,20.891266]
[1755261080084,2.14901187,4653.4,4650.2,25.42746]
[1755261080313,2.14836616,4654.7,4650.2,25.42746]
[1755261080494,0.55,4652.0,4650.2,25.42746]
[1755261080717,0.55,4651.7,4649.7,2.15067043]
[1755261080914,0.55,4651.7,4649.2,2.15086843]
[1755261081095,6.444,4651.6,4649.1,0.04]
[1755261081304,5.155,4652.0,4649.1,0.04]
[1755261081488,2.14970549,4651.8,4649.1,0.04]
[1755261081688,4.897,4651.9,4649.1,0.04]
[1755261081896,3.0,4651.7,4649.1,0.04]
[1755261082192,3.0,4651.5,4649.1,0.04]
[1755261082531,4.897,4651.9,4647.1,0.04]
[1755261082532,3.0,4651.3,4647.1,0.04]
[1755261082744,4.897,4651.9,4647.1,0.04]
[1755261082745,3.0,4651.1,4647.1,0.04]
[1755261083036,30.0,4651.2,4647.1,0.04]
[1755261083037,2.15071042,4649.7,4647.8,2.15153463]
[1755261083212,0.55,4649.0,4647.1,0.04]
[1755261083392,0.55,4648.7,4648.0,2.15145136]
[1755261083592,0.55,4648.7,4647.1,0.04]
[1755261083794,0.55,4648.2,4647.1,0.04]
[1755261084030,0.55,4650.0,4647.1,0.04]
[1755261084238,0.55,4650.2,4647.1,0.04]
[1755261084396,0.55,4650.0,4647.1,0.04]
[1755261084636,2.309,4650.4,4647.1,0.04]
[1755261084637,0.55,4647.8,4647.1,0.04]
[1755261084947,0.55,4647.9,4647.1,0.04]
[1755261085115,2.15113902,4648.7,4647.1,0.04]
[1755261085322,0.55,4649.4,4647.1,0.04]
[1755261085769,2.15078042,4649.5,4647.1,0.04]
[1755261085953,0.55,4649.0,4647.1,0.04]
[1755261086149,2.14991173,4651.4,4647.4,0.1]
[1755261086360,0.04,4649.9,4649.7,2.15064906]
[1755261086516,0.04,4649.9,4649.6,2.15070019]
[1755261086712,0.04,4649.9,4649.7,2.15064211]
[1755261087264,0.02,4653.9,4650.8,2.15016771]
[1755261087868,0.02685977,4653.8,4649.9,0.1]
[1755261088169,0.02685977,4653.8,4647.6,2.15164087]
[1755261088170,0.02687709,4650.8,4650.0,0.22506421]
[1755261088462,2.14897334,4653.4,4650.8,2.15016771]
[1755261088766,0.02,4653.9,4651.8,2.24970549]
[1755261088917,0.02,4653.9,4651.8,0.43994956]
[1755261089267,0.02,4653.9,4651.8,0.1]
[1755261089445,0.02,4653.9,4652.1,0.1]
[1755261089665,0.02,4653.9,4651.2,2.1499828]
[1755261089867,0.02686554,4652.8,4651.3,0.51499828]
[1755261090067,0.02686554,4652.8,4650.0,0.1]
[1755261090367,0.02,4653.9,4649.8,0.1]
[1755261090571,0.02,4653.9,4650.3,2.15039889]
[1755261090572,0.02686554,4652.8,4650.3,2.15039889]
[1755261090756,0.02,4653.9,4650.8,0.1]
[1755261090954,0.02685977,4653.8,4650.8,0.1]
[1755261091177,2.16874613,4653.9,4651.2,2.24995901]
[1755261091336,0.02685977,4653.8,4651.9,0.1]
[1755261091535,0.02,4653.9,4652.7,2.14927507]
[1755261091737,1e-08,4652.9,4652.7,5.14927507]
[1755261092071,1e-08,4652.9,4652.8,0.1]
[1755261092454,1e-08,4652.9,4652.7,2.14927507]
[1755261092657,1e-08,4652.9,4652.7,2.14926427]
[1755261092895,1e-08,4652.9,4652.7,5.14926427]
[1755261093209,1e-08,4652.9,4652.7,2.14926427]
[1755261093558,1e-08,4652.9,4652.2,3.0]
[1755261093559,1e-08,4652.9,4652.2,0.1]
[1755261093757,1e-08,4652.9,4650.9,2.15012078]
[1755261093758,1e-08,4652.9,4652.7,2.14928483]
[1755261094068,1e-08,4652.9,4649.6,0.001]
[1755261094271,1e-08,4652.9,4651.0,0.1]
[1755261094498,0.55,4653.6,4651.0,0.1]
[1755261094673,0.0268615,4653.5,4650.5,0.1]
[1755261094872,3.0,4653.7,4650.5,0.1]
[1755261095155,3.0,4653.7,4649.6,0.001]
[1755261095156,0.55,4651.2,4649.6,2.15169472]
[1755261095362,0.55,4650.7,4649.6,0.001]
[1755261095555,0.02686958,4652.1,4650.2,0.1]
[1755261095785,2.14930425,4652.7,4650.7,2.15018247]
[1755261096058,0.55,4653.6,4650.5,0.1]
[1755261096301,3.55,4653.4,4649.6,0.001]
[1755261096502,0.35768615,4653.3,4650.7,0.1]
[1755261096808,2.14905871,4653.2,4651.1,0.02]
[1755261097031,5.14858381,4654.3,4651.1,0.02]
[1755261097302,0.93621113,4654.4,4651.2,0.1]
[1755261097456,0.02685977,4653.8,4651.1,0.02]
[1755261097857,0.55,4651.4,4651.1,0.02]
[1755261098059,0.0268742,4651.3,4651.1,0.02]
[1755261098259,0.55,4651.7,4651.1,0.02]
[1755261098486,3.0,4652.4,4651.1,0.02]
[1755261098487,0.55,4651.2,4651.1,0.02]
[1755261098912,0.55,4651.2,4650.2,0.001]
[1755261098913,0.55,4650.3,4650.2,0.001]
[1755261099200,0.55,4650.2,4649.6,0.001]
[1755261099406,2.7273257,4650.2,4649.6,0.001]
[1755261099758,1.47672852,4653.3,4649.6,0.001]
[1755261099963,0.55,4650.4,4649.6,0.001]
[1755261100192,0.02629171,4650.3,4649.6,0.001]
[1755261100504,3.0,4651.4,4649.6,0.001]
[1755261100505,0.55,4650.8,4649.6,0.101]
[1755261100717,0.55,4650.8,4649.9,2.15058263]
[1755261100999,0.02629171,4652.2,4649.9,0.1]
[1755261101205,0.55599183,4653.6,4649.9,0.1]
[1755261101402,0.02,4652.9,4650.2,0.1]
[1755261101620,0.02629171,4652.8,4650.7,2.15020002]
[1755261101777,0.02629171,4652.8,4650.2,0.1]
[1755261101962,2.14944546,4652.4,4650.2,0.1]
[1755261102163,0.02629171,4652.3,4650.5,0.1]
[1755261102502,6.47929171,4652.8,4649.6,0.001]
[1755261102715,0.55,4652.5,4649.6,0.001]
[1755261102997,2.70067638,4649.7,4649.6,0.001]
[1755261103332,0.55,4651.2,4648.7,0.001]
[1755261103521,0.02629171,4651.1,4648.7,0.001]
[1755261103658,0.57629171,4651.1,4649.2,0.1]
[1755261103857,0.55,4650.3,4648.9,0.1]
[1755261104059,0.55,4649.2,4648.7,0.001]
[1755261104294,0.55,4649.6,4648.7,0.001]
[1755261104466,1.00941893,4650.0,4648.7,0.001]
[1755261104670,0.47971881,4651.1,4650.0,0.1]
[1755261104994,0.02629171,4651.1,4648.7,0.001]
[1755261105196,0.02629171,4651.1,4649.6,0.1]
[1755261105197,0.21762495,4651.0,4649.6,0.1]
[1755261105399,2.15090768,4649.2,4648.7,0.001]
[1755261105595,0.45673523,4649.7,4649.3,0.1]
[1755261105920,0.55,4650.0,4649.0,0.1]
[1755261106080,2.1506307,4649.8,4649.0,0.1]
[1755261106416,0.55,4649.5,4649.0,0.1]
[1755261106582,2.15082257,4649.4,4649.0,0.1]
[1755261106772,2.15090768,4649.2,4648.7,0.001]
[1755261106967,3.35629985,4649.2,4648.7,0.001]
[1755261107229,3.35660868,4649.2,4648.7,0.001]
[1755261107425,4.16456832,4649.2,4648.7,0.001]
[1755261107622,3.55559665,4649.2,4648.7,0.001]
[1755261107992,3.55,4648.6,4646.1,0.04]
[1755261108190,0.57355044,4647.5,4646.1,0.04]
[1755261108389,0.55,4647.3,4646.1,0.04]
[1755261108701,3.1848603,4647.2,4646.1,0.04]
[1755261108900,3.95767186,4647.2,4646.1,0.04]
[1755261109219,6.55710289,4647.2,4647.1,1e-08]
[1755261109399,3.55,4646.1,4645.1,0.04]
[1755261109599,3.46727153,4645.2,4645.1,0.04]
[1755261109786,0.55,4645.0,4644.1,0.04]
[1755261109975,3.46757044,4644.2,4644.1,0.04]
[1755261110175,0.68228806,4644.2,4644.1,0.04]
[1755261110380,0.65599635,4644.8,4644.1,0.04]
[1755261110676,0.55,4644.3,4644.1,0.04]
[1755261111079,3.18625031,4644.2,4644.1,0.04]
[1755261111223,4.23228806,4644.2,4641.1,0.04]
[1755261111570,0.55,4644.0,4642.2,2.15412367]
[1755261111858,0.57075065,4644.2,4643.1,2.19370994]
[1755261112063,0.55,4643.6,4643.1,0.04]
[1755261112243,2.15366515,4643.3,4643.1,0.04]
[1755261112417,0.55,4644.1,4643.4,2.15358059]
[1755261112760,0.02629171,4644.1,4643.1,0.04]
[1755261112927,0.02629171,4644.0,4643.1,2.19371355]
[1755261113127,0.7640775,4645.2,4643.1,2.19371355]
[1755261113128,0.55,4644.4,4643.1,0.04]
[1755261113329,2.15338003,4643.9,4643.1,0.04]
[1755261113655,3.57075065,4645.1,4643.1,0.04]
[1755261113656,0.02629171,4644.7,4643.1,0.04]
[1755261113816,0.04,4645.9,4643.3,3.0]
[1755261114015,0.04,4645.9,4643.1,0.04]
[1755261114016,0.02629171,4645.8,4644.7,2.15298596]
[1755261114229,0.02629171,4645.8,4643.1,0.04]
[1755261114558,0.57075065,4645.7,4643.6,0.001]
[1755261114796,2.15284586,4645.1,4643.6,0.001]
[1755261114917,2.15289887,4644.9,4643.6,0.001]
[1755261115116,0.02629171,4644.8,4643.6,2.15448547]
[1755261115323,2.15285445,4645.0,4643.7,2.15345521]
[1755261115555,0.02629171,4644.9,4644.2,2.15321846]
[1755261115857,0.04,4645.9,4644.2,3.21532185]
[1755261116044,0.04,4645.9,4644.2,0.21532185]
[1755261116249,0.04,4645.9,4645.8,2.15248181]
[1755261116563,0.04,4645.9,4645.6,2.13002824]
[1755261116719,0.04,4645.9,4645.8,2.15248181]
[1755261117560,0.04,4645.9,4645.1,2.15279214]
[1755261117766,0.04,4645.9,4643.9,3.0]
[1755261117946,0.04,4645.9,4645.3,2.15267239]
[1755261118122,0.55,4645.8,4645.3,2.15268977]
[1755261118318,0.04,4645.9,4645.4,2.1526611]
[1755261118672,0.04,4645.9,4643.7,3.0]
[1755261118673,0.55,4645.8,4643.7,3.0]
[1755261118838,0.02629171,4645.7,4645.3,2.15268821]
[1755261119166,0.04,4645.9,4645.8,2.15248181]
[1755261119344,0.0078544,4647.2,4643.8,0.55]
[1755261119552,0.02629171,4646.8,4646.6,2.15208449]
[1755261119751,0.55,4646.8,4643.9,9.46]
[1755261119963,0.57629171,4646.7,4645.7,2.15248493]
[1755261120148,0.02629171,4646.7,4644.3,2.15317701]
[1755261120349,0.02629171,4646.7,4644.4,0.2153177]
[1755261120673,0.04,4647.9,4646.8,2.15201859]
[1755261121050,0.04,4647.9,4646.4,2.15220385]
[1755261121263,0.04,4647.9,4647.8,2.15155557]
[1755261121576,0.04,4648.9,4648.6,2.15117549]
[1755261121792,0.04,4648.9,4648.8,2.15109275]
[1755261122085,0.04,4648.9,4647.8,3.0]
[1755261122281,0.04,4648.9,4648.7,2.15113902]
[1755261122434,0.04,4648.9,4648.8,2.15109275]
[1755261123174,0.04,4648.9,4647.8,3.42806]
[1755261123175,0.02829171,4649.7,4647.3,2.15178705]
[1755261123474,0.002,4649.7,4647.4,0.5151787]
[1755261123774,0.002,4649.7,4648.9,2.15103751]
[1755261124092,0.002,4649.7,4647.0,7.3137]
[1755261124378,0.002,4649.7,4647.2,2.15183336]
[1755261124535,0.002,4649.7,4649.0,2.15098906]
[1755261124734,0.80779171,4649.7,4647.1,0.4259]
[1755261124930,1.12075065,4649.2,4646.4,2.15220385]
[1755261125135,0.55,4649.0,4646.5,0.77461038]
[1755261125575,1.02584949,4648.9,4647.8,0.001]
[1755261125734,3.7640775,4649.2,4647.8,0.001]
[1755261125735,0.57075065,4649.2,4647.8,0.001]
[1755261126092,0.002,4649.7,4647.9,6.458]
[1755261126372,0.002,4649.7,4648.0,3.6459]
[1755261126587,0.002,4649.7,4647.8,0.001]
[1755261126588,0.90479884,4649.6,4647.8,0.001]
[1755261126739,0.57075065,4648.7,4647.8,0.001]
[1755261126939,0.55,4648.0,4647.8,0.001]
[1755261127174,6.94697733,4647.9,4647.8,0.001]
[1755261127394,7.38580812,4647.9,4647.8,0.001]
[1755261128102,0.55,4647.6,4646.1,0.04]
[1755261128392,2.15183336,4647.2,4646.1,0.04]
[1755261128554,2.63322391,4647.2,4646.1,0.04]
[1755261128749,0.55,4647.2,4646.1,0.04]
[1755261128950,0.48139055,4647.2,4646.1,0.04]
[1755261129202,2.15183336,4647.2,4646.1,0.04]
[1755261129498,4.3861322,4647.2,4646.1,0.04]
[1755261129677,2.7022965,4646.2,4646.1,0.04]
[1755261129901,2.72858821,4646.2,4646.1,0.04]
[1755261130105,0.45509884,4646.2,4646.1,0.04]
[1755261130303,0.45509884,4646.2,4645.1,0.04]
[1755261130304,0.80579171,4646.2,4645.1,0.04]
[1755261130489,2.72517852,4645.2,4645.1,0.04]
[1755261130687,2.15318095,4644.3,4643.6,0.001]
[1755261130878,2.72951508,4644.2,4643.6,0.001]
[1755261131075,3.17921508,4644.2,4643.6,0.001]
[1755261131313,0.45509884,4644.4,4644.0,2.15329394]
[1755261131614,3.0,4645.4,4643.6,0.001]
[1755261131615,0.45509884,4645.4,4644.2,2.15322337]
[1755261131823,1.57743217,4646.0,4645.1,0.001]
[1755261132129,0.55,4645.6,4645.1,0.001]
[1755261132289,0.57233333,4645.4,4645.1,0.001]
[1755261132635,2.70275983,4645.2,4645.1,0.001]
[1755261132779,3.18415038,4645.2,4645.1,0.001]
[1755261132981,3.63385038,4645.2,4645.1,0.001]
[1755261133178,1.00509884,4645.2,4645.1,0.001]
[1755261133408,0.45509884,4645.4,4645.1,2.15379101]
[1755261133710,0.45509884,4645.3,4645.1,0.001]
[1755261133908,1.096497,4646.7,4645.1,0.001]
[1755261133909,2.15275983,4645.2,4645.1,0.001]
[1755261134126,3.15785867,4645.2,4645.1,0.001]
[1755261134276,1.60452196,4645.2,4645.1,0.001]
[1755261134475,5.55818777,4645.2,4645.1,1e-08]
[1755261134720,3.15785867,4645.2,4645.1,1e-08]
[1755261134876,0.45509884,4645.2,4645.1,1e-08]
[1755261135218,0.45509884,4645.6,4645.1,1e-08]
[1755261135423,0.45509884,4646.3,4645.1,1e-08]
[1755261135576,0.48139055,4646.2,4645.1,1e-08]
[1755261135776,0.45509884,4646.1,4645.1,1e-08]
[1755261135976,2.60735398,4646.3,4645.1,1e-08]
[1755261136178,0.45509884,4646.5,4645.2,0.8547]
[1755261136405,0.02629171,4646.7,4645.2,0.98276]
[1755261136606,0.02629171,4646.7,4645.1,0.42590001]
[1755261136607,0.02629171,4646.6,4645.1,1e-08]
[1755261136808,0.55,4646.1,4645.1,1e-08]
[1755261137120,2.15257398,4645.7,4645.1,1e-08]
[1755261137323,0.45509884,4646.1,4645.1,1e-08]
[1755261137526,2.1522815,4646.3,4645.1,1e-08]
[1755261137737,0.55,4646.6,4645.1,1e-08]
[1755261137914,0.04,4646.9,4645.1,0.85470001]
[1755261138228,0.02629171,4646.8,4645.7,2.15248731]
[1755261138428,0.57629171,4646.8,4645.1,1e-08]
[1755261138636,0.55,4646.6,4645.1,1e-08]
[1755261138817,2.15254038,4645.7,4645.1,1e-08]
[1755261139130,2.15239242,4646.0,4645.1,1e-08]
[1755261139131,0.57330966,4646.0,4645.1,1e-08]
[1755261139337,0.02629171,4645.9,4645.1,1e-08]
[1755261139505,0.02549171,4645.9,4645.1,1e-08]
[1755261139901,0.55,4645.7,4645.1,1e-08]
[1755261140091,0.02469171,4645.7,4645.1,1e-08]
[1755261140542,2.15268311,4645.4,4645.1,1e-08]
[1755261140722,2.70275983,4645.2,4645.1,1e-08]
[1755261140893,0.55,4645.2,4645.1,1e-08]
[1755261141091,0.45943168,4645.5,4645.1,1e-08]
[1755261141328,0.02549171,4645.4,4645.1,1e-08]